bitfinex/quotes_BTCUSD_20220213
["timestamp","ask_amount","ask_price","bid_price","bid_amount"]
[1644775567889,0.059036,42366.0,42364.0,0.00200703]
[1644775568089,0.059036,42366.0,42361.0,0.22873134]
[1644775568291,0.059036,42366.0,42362.0,0.332701]
[1644775568490,0.059034,42366.0,42363.0,0.25639344]
[1644775568689,0.059034,42366.0,42364.0,0.265294]
[1644775568890,0.118067,42366.0,42364.0,0.265294]
[1644775569090,0.059034,42366.0,42365.0,0.26451793]
[1644775569290,0.059034,42366.0,42364.0,0.332683]
[1644775569589,0.059034,42366.0,42365.0,0.26369346]
[1644775570647,0.059034,42366.0,42365.0,0.52898146]
[1644775570844,0.06075495,42368.0,42365.0,0.52898146]
[1644775571045,0.06075495,42368.0,42366.0,0.332667]
[1644775571443,0.06075495,42368.0,42367.0,0.25960903]
[1644775571646,0.0603806,42368.0,42367.0,0.52488303]
[1644775571847,0.0603806,42368.0,42367.0,0.265273]
[1644775572046,0.0603806,42368.0,42367.0,0.26598221]
[1644775572244,0.0603806,42368.0,42367.0,0.265238]
[1644775573045,0.1194096,42368.0,42367.0,0.265238]
[1644775573246,0.1194096,42368.0,42362.0,0.3111926]
[1644775573448,0.0603806,42368.0,42363.0,0.265264]
[1644775574298,0.06049511,42368.0,42363.0,0.265264]
[1644775575198,0.0603806,42368.0,42363.0,0.265264]
[1644775575597,0.06049511,42368.0,42363.0,0.265264]
[1644775576400,0.0603806,42368.0,42363.0,0.265264]
[1644775576599,0.1194096,42368.0,42363.0,0.265264]
[1644775576800,0.11954167,42368.0,42363.0,0.265264]
[1644775577202,0.17857067,42368.0,42363.0,0.265264]
[1644775577403,0.11954167,42368.0,42363.0,0.265264]
[1644775577604,0.0603806,42368.0,42363.0,0.265264]
[1644775577803,0.06079309,42368.0,42363.0,0.265264]
[1644775578849,0.0603806,42368.0,42363.0,0.265264]
[1644775579052,0.06079309,42368.0,42363.0,0.265264]
[1644775580052,0.0603806,42368.0,42363.0,0.265264]
[1644775580254,0.0607441,42368.0,42363.0,0.265264]
[1644775581253,0.0603806,42368.0,42363.0,0.265264]
[1644775581454,0.0607441,42368.0,42363.0,0.265264]
[1644775581899,0.06100597,42368.0,42363.0,0.265264]
[1644775582399,0.06064247,42368.0,42363.0,0.265264]
[1644775582599,0.06100597,42368.0,42363.0,0.265264]
[1644775582799,0.17906397,42368.0,42363.0,0.265264]
[1644775583700,0.11967147,42368.0,42363.0,0.265264]
[1644775583901,0.12004825,42368.0,42363.0,0.265264]
[1644775584099,0.118061,42367.0,42363.0,0.265264]
[1644775584299,0.11832287,42367.0,42363.0,0.265264]
[1644775584500,0.05929187,42367.0,42363.0,0.265264]
[1644775584902,0.05929187,42367.0,42366.0,0.25896491]
[1644775585099,0.05929187,42367.0,42366.0,0.86533972]
[1644775585100,0.05940678,42367.0,42366.0,0.86533972]
[1644775585301,0.00037678,42367.0,42366.0,0.86533972]
[1644775586152,0.00161547,42368.0,42366.0,0.86533972]
[1644775586351,0.00161547,42368.0,42367.0,0.26524]
[1644775586552,0.0013536,42368.0,42367.0,0.26524]
[1644775586751,0.0013536,42368.0,42367.0,0.265239]
[1644775586951,0.0013536,42368.0,42367.0,0.265238]
[1644775588454,0.0603796,42368.0,42367.0,0.265238]
[1644775588654,0.1218592,42370.0,42369.0,0.4042279]
[1644775588856,0.004181,42370.0,42369.0,0.93776819]
[1644775589056,0.004181,42370.0,42369.0,0.93776719]
[1644775589298,0.063207,42370.0,42369.0,0.93776619]
[1644775589700,0.0628332,42370.0,42369.0,0.93776519]
[1644775590099,0.0628332,42370.0,42369.0,0.93776419]
[1644775590301,0.0628332,42370.0,42369.0,1.22028656]
[1644775590500,0.0038072,42370.0,42369.0,1.22028656]
[1644775590698,0.0038072,42370.0,42369.0,1.22028556]
[1644775590901,0.0038072,42370.0,42369.0,1.22028456]
[1644775591097,0.0038072,42370.0,42369.0,0.93776119]
[1644775591698,0.0038072,42370.0,42369.0,0.93776019]
[1644775591899,0.0038072,42370.0,42369.0,0.93775919]
[1644775592100,0.0038072,42370.0,42369.0,0.93775819]
[1644775592300,0.0038072,42370.0,42369.0,0.93775719]
[1644775592500,0.0038072,42370.0,42369.0,0.93775619]
[1644775592701,0.0038072,42370.0,42369.0,0.93775519]
[1644775592944,0.0038072,42370.0,42369.0,1.20414491]
[1644775593144,0.0038072,42370.0,42369.0,1.20414391]
[1644775593345,0.0038072,42370.0,42369.0,0.67254219]
[1644775593548,0.0038072,42370.0,42369.0,0.93493043]
[1644775593746,0.0038072,42370.0,42369.0,0.67254219]
[1644775594545,0.0038072,42370.0,42369.0,1.19415313]
[1644775594745,0.0017072,42370.0,42369.0,0.93775219]
[1644775597895,0.1768842,42371.0,42369.0,0.93775219]
[1644775598095,0.1768842,42371.0,42370.0,0.332682]
[1644775598899,0.1768842,42371.0,42370.0,0.332701]
[1644775599096,0.1768842,42371.0,42369.0,0.67254219]
[1644775599296,0.1768842,42371.0,42370.0,0.332701]
[1644775599495,0.1768842,42371.0,42369.0,0.67254219]
[1644775600944,0.1768842,42371.0,42370.0,0.332701]
[1644775601144,0.1768842,42371.0,42369.0,0.67254219]
[1644775601745,0.1768842,42371.0,42370.0,0.332701]
[1644775602546,0.1768842,42371.0,42369.0,0.67254219]
[1644775602746,0.17714625,42371.0,42369.0,0.67254219]
[1644775603546,0.17714625,42371.0,42370.0,0.332701]
[1644775603749,0.1768842,42371.0,42370.0,0.332701]
[1644775604196,0.1768842,42371.0,42369.0,0.67254219]
[1644775604502,0.17714625,42371.0,42369.0,0.67254219]
[1644775605194,0.17714625,42371.0,42370.0,0.332701]
[1644775605393,0.1768842,42371.0,42369.0,0.67254219]
[1644775605593,0.17714625,42371.0,42370.0,0.332701]
[1644775605794,0.1768842,42371.0,42369.0,0.67254219]
[1644775605994,0.17714625,42371.0,42370.0,0.332701]
[1644775606296,0.1768842,42371.0,42370.0,0.332701]
[1644775607196,0.1768842,42371.0,42369.0,0.67254219]
[1644775607396,0.17714625,42371.0,42370.0,0.332701]
[1644775607597,0.17714625,42371.0,42369.0,0.67254219]
[1644775607797,0.17714625,42371.0,42370.0,0.332701]
[1644775608053,0.1768842,42371.0,42369.0,0.67254219]
[1644775608253,0.17714625,42371.0,42369.0,0.67254219]
[1644775608754,0.17714625,42371.0,42370.0,0.332701]
[1644775608953,0.1768842,42371.0,42370.0,0.332701]
[1644775609855,0.1768842,42371.0,42369.0,0.67254219]
[1644775610052,0.17714625,42371.0,42369.0,0.67254219]
[1644775610253,0.1768842,42371.0,42369.0,0.67254219]
[1644775610953,0.1768842,42371.0,42370.0,0.332701]
[1644775611154,0.1768842,42371.0,42369.0,0.67254219]
[1644775611354,0.1768842,42371.0,42370.0,0.332701]
[1644775612106,0.178082,42371.0,42369.0,0.4042279]
[1644775612309,0.17834405,42371.0,42369.0,0.4042279]
[1644775613409,0.17834405,42371.0,42370.0,0.632701]
[1644775613410,0.06028805,42371.0,42370.0,0.632701]
[1644775613609,0.001,42371.0,42370.0,0.632701]
[1644775613807,0.001,42371.0,42370.0,0.332701]
[1644775618853,0.11831205,42372.0,42371.0,0.267178]
[1644775619211,0.11805,42372.0,42371.0,0.267178]
[1644775624549,0.0913792,42373.0,42371.0,0.267178]
[1644775626250,0.0913792,42373.0,42372.0,0.06796014]
[1644775626450,0.0321,42373.0,42372.0,0.40064314]
[1644775628608,0.0321,42373.0,42372.0,0.332683]
[1644775629508,0.0321,42373.0,42372.0,0.41960725]
[1644775630108,0.0321,42373.0,42372.0,0.60347158]
[1644775633653,0.0271,42373.0,42372.0,0.60347158]
[1644775643399,0.0271,42373.0,42372.0,0.332683]
[1644775645650,0.0271,42373.0,42372.0,0.59715011]
[1644775648659,0.00347434,42375.0,42374.0,0.1809584]
[1644775648857,0.00347434,42375.0,42374.0,0.77435334]
[1644775649057,0.00347434,42375.0,42374.0,0.5136254]
[1644775649704,0.0031,42375.0,42374.0,0.5136254]
[1644775650304,0.062118,42375.0,42374.0,0.5136254]
[1644775650806,0.062118,42375.0,42374.0,0.1809584]
[1644775652964,0.0031,42375.0,42374.0,0.1809584]
[1644775653165,0.0031,42375.0,42374.0,0.5136254]
[1644775654266,0.0031,42375.0,42374.0,0.1809584]
[1644775654967,0.0031,42375.0,42374.0,0.5136254]
[1644775657014,0.0031,42375.0,42374.0,0.1809584]
[1644775658620,0.0031,42375.0,42374.0,0.5136254]
[1644775658816,0.0031,42375.0,42374.0,0.5136594]
[1644775659017,0.0031,42375.0,42374.0,0.1809584]
[1644775659216,0.0031,42375.0,42374.0,0.5136584]
[1644775659418,0.0031,42375.0,42374.0,0.1809584]
[1644775660019,0.0031,42375.0,42374.0,0.5136584]
[1644775660320,0.0031,42375.0,42374.0,0.1809584]
[1644775661452,0.0031,42375.0,42374.0,0.1709584]
[1644775661652,0.0031,42375.0,42374.0,0.5036584]
[1644775666120,0.72508182,42396.0,42382.0,0.35]
[1644775666319,0.72508182,42396.0,42376.0,1.0]
[1644775666320,0.0949274,42397.0,42391.0,0.05]
[1644775666513,0.01479698,42399.0,42394.0,1.0]
[1644775666714,0.0021,42400.0,42395.0,1.1473]
[1644775666914,0.0021,42400.0,42397.0,0.264772]
[1644775667115,0.0021,42400.0,42398.0,0.3473]
[1644775667321,0.0292785,42403.0,42399.0,0.4]
[1644775667513,0.0292785,42403.0,42398.0,0.379985]
[1644775667514,0.0292785,42403.0,42400.0,0.0473]
[1644775667713,0.0292785,42403.0,42401.0,0.0473]
[1644775668153,0.332701,42402.0,42401.0,0.0473]
[1644775668553,0.332701,42402.0,42394.0,0.3]
[1644775668753,0.2474014,42403.0,42392.0,0.0473]
[1644775668956,0.2474014,42403.0,42393.0,0.3]
[1644775669155,0.3474014,42403.0,42393.0,0.3]
[1644775669755,0.332701,42402.0,42392.0,0.0473]
[1644775669955,0.332701,42400.0,42393.0,0.3]
[1644775670155,0.332701,42400.0,42391.0,0.5]
[1644775670156,0.482701,42400.0,42391.0,0.5]
[1644775670357,0.23750657,42395.0,42385.0,0.3]
[1644775670955,0.23750657,42395.0,42385.0,0.8]
[1644775671255,0.23750657,42395.0,42385.0,0.3]
[1644775671462,0.23750657,42395.0,42382.0,0.3]
[1644775671710,0.00038934,42392.0,42383.0,0.332701]
[1644775671904,0.22795381,42390.0,42383.0,0.332701]
[1644775672503,0.23750657,42395.0,42383.0,0.332701]
[1644775672705,0.00038936,42389.0,42383.0,0.332701]
[1644775673707,0.23442717,42393.0,42384.0,0.264971]
[1644775673908,0.23442717,42393.0,42386.0,0.332678]
[1644775674707,0.23442717,42393.0,42387.0,0.2623018]
[1644775674907,0.23442717,42393.0,42388.0,0.264942]
[1644775675107,0.00038501,42392.0,42388.0,0.264942]
[1644775675311,0.00038501,42392.0,42389.0,0.51913524]
[1644775675755,0.00038501,42392.0,42389.0,0.77812124]
[1644775675956,0.00038501,42392.0,42390.0,0.379945]
[1644775676158,0.00237092,42404.0,42393.0,0.05898]
[1644775676354,0.00153977,42399.0,42394.0,0.64617009]
[1644775676556,0.00153977,42399.0,42395.0,0.05898]
[1644775676757,0.00153977,42399.0,42396.0,0.264889]
[1644775676953,0.00153977,42399.0,42398.0,0.332575]
[1644775677157,0.00153977,42399.0,42393.0,0.28576704]
[1644775677355,0.05899,42402.0,42393.0,0.28576704]
[1644775677556,0.00038495,42401.0,42393.0,0.28576704]
[1644775677755,0.00038495,42401.0,42394.0,0.332701]
[1644775677956,0.00038495,42401.0,42394.0,0.062701]
[1644775678456,0.00237092,42404.0,42394.0,0.062701]
[1644775678856,0.00013712,42400.0,42394.0,0.062701]
[1644775679705,0.00237092,42404.0,42394.0,0.062701]
[1644775680008,0.00013712,42399.0,42395.0,0.05898]
[1644775680210,0.00013712,42399.0,42396.0,0.60680309]
[1644775680709,0.00237092,42404.0,42401.0,0.00027423]
[1644775680908,0.0294738,42403.0,42402.0,0.062709]
[1644775681107,0.0294738,42403.0,42402.0,0.3243103]
[1644775681410,0.001,42407.0,42405.0,0.8]
[1644775681609,0.001,42407.0,42406.0,0.612025]
[1644775681810,0.001,42407.0,42406.0,0.712025]
[1644775682007,0.07036427,42409.0,42407.0,0.5]
[1644775682206,0.00445,42411.0,42408.0,0.409994]
[1644775682409,0.00445,42411.0,42409.0,1.3]
[1644775682410,0.0021976,42410.0,42409.0,1.3]
[1644775682610,0.0021976,42410.0,42409.0,0.109991]
[1644775682807,0.0021976,42410.0,42409.0,0.512004]
[1644775683453,0.0021976,42410.0,42409.0,0.312004]
[1644775683656,0.0021976,42410.0,42409.0,0.0473]
[1644775683855,0.0021976,42410.0,42402.0,0.0473]
[1644775684055,0.00246296,42410.0,42403.0,0.327442]
[1644775684254,0.00146296,42410.0,42404.0,0.29783405]
[1644775684458,0.00146296,42410.0,42405.0,0.37473]
[1644775684655,0.00146296,42410.0,42405.0,0.492646]
[1644775684857,0.00013646,42409.0,42406.0,0.627421]
[1644775685057,0.00040182,42409.0,42407.0,0.0473]
[1644775685256,0.00013646,42409.0,42408.0,0.327404]
[1644775685455,0.00040182,42409.0,42408.0,0.327404]
[1644775685655,0.00146296,42410.0,42408.0,0.327404]
[1644775686916,0.00146296,42410.0,42409.0,0.327395]
[1644775687121,0.0011976,42410.0,42409.0,0.327395]
[1644775694504,0.0011976,42410.0,42401.0,0.00027423]
[1644775694709,0.00146296,42410.0,42404.0,0.327438]
[1644775694909,0.00146296,42410.0,42402.0,0.327453]
[1644775695104,0.00146296,42410.0,42401.0,0.00027423]
[1644775695105,0.00146296,42410.0,42404.0,0.327438]
[1644775695507,0.00042417,42408.0,42404.0,0.327438]
[1644775696604,0.00026536,42409.0,42404.0,0.327438]
[1644775696804,0.00042417,42408.0,42404.0,0.327438]
[1644775697807,0.00026536,42409.0,42404.0,0.327438]
[1644775698053,0.00042417,42408.0,42404.0,0.327438]
[1644775698453,0.00042417,42408.0,42404.0,0.386402]
[1644775698855,0.00026536,42409.0,42404.0,0.386402]
[1644775699055,0.00146296,42410.0,42405.0,0.19062609]
[1644775699254,0.00042417,42408.0,42406.0,0.65310997]
[1644775699454,0.00042417,42408.0,42407.0,0.31635483]
[1644775699755,0.00068953,42408.0,42407.0,0.64376783]
[1644775699958,0.00042417,42408.0,42407.0,0.64376783]
[1644775700156,0.00026536,42409.0,42408.0,0.75084834]
[1644775700454,0.0011976,42410.0,42409.0,0.327395]
[1644775700455,0.00188712,42410.0,42409.0,0.327395]
[1644775700656,0.00188712,42410.0,42409.0,0.73620794]
[1644775700657,0.00162176,42410.0,42409.0,0.73620794]
[1644775700854,0.00162176,42410.0,42409.0,0.79516394]
[1644775701355,0.0011976,42410.0,42409.0,0.89516394]
[1644775703007,0.0011976,42410.0,42409.0,0.83620794]
[1644775703806,0.0011976,42410.0,42409.0,0.63620794]
[1644775704205,0.0011976,42410.0,42409.0,0.327395]
[1644775708058,0.00142414,42412.0,42410.0,1.0]
[1644775708256,0.00142414,42412.0,42411.0,0.627377]
[1644775708455,0.00168971,42412.0,42411.0,0.674676]
[1644775708666,0.00149182,42420.0,42414.0,1.0]
[1644775708856,0.0007388,42419.0,42416.0,0.05]
[1644775709058,0.00149182,42420.0,42418.0,0.7]
[1644775709325,0.001,42434.0,42420.0,1.058935]
[1644775709326,0.01126182,42426.0,42420.0,1.058935]
[1644775709526,0.01126182,42426.0,42421.0,0.492452]
[1644775709726,0.01126182,42426.0,42422.0,0.3]
[1644775709923,0.01126182,42426.0,42423.0,0.51261945]
[1644775710124,0.00013848,42425.0,42423.0,0.51261945]
[1644775710323,0.00013848,42425.0,42424.0,0.327258]
[1644775710530,0.0011975,42430.0,42428.0,0.02280059]
[1644775710724,0.0011975,42430.0,42428.0,0.35002159]
[1644775711729,1.0,42428.0,42426.0,0.058938]
[1644775711928,1.0,42428.0,42416.0,0.294704]
[1644775711929,0.0011975,42430.0,42418.0,0.0473]
[1644775712127,0.21561579,42430.0,42419.0,0.3]
[1644775712326,0.0999,42427.0,42419.0,0.3]
[1644775712526,0.21561579,42430.0,42419.0,0.3]
[1644775712724,0.23439755,42428.0,42419.0,0.3]
[1644775713171,0.23439755,42428.0,42419.0,0.3003]
[1644775713370,0.01124212,42429.0,42420.0,0.08203877]
[1644775713569,0.01124212,42429.0,42420.0,0.14097977]
[1644775713969,0.00624212,42429.0,42420.0,0.08203877]
[1644775714371,0.20456295,42428.0,42427.0,0.0733559]
[1644775714571,0.26351195,42428.0,42419.0,0.3003]
[1644775714770,0.00042696,42427.0,42419.0,0.3003]
[1644775715171,0.058957,42426.0,42419.0,0.3003]
[1644775715574,0.058957,42426.0,42419.0,0.0003]
[1644775715775,0.058957,42426.0,42421.0,0.07350782]
[1644775715973,0.05251695,42426.0,42421.0,0.07393462]
[1644775716372,0.058954,42425.0,42421.0,0.07393462]
[1644775716573,0.05251695,42426.0,42421.0,0.07393462]
[1644775716806,0.00042695,42427.0,42421.0,0.07393462]
[1644775717009,0.20456295,42428.0,42421.0,0.07393462]
[1644775717209,0.00042696,42427.0,42421.0,0.07393462]
[1644775717906,0.058952,42426.0,42421.0,0.07393462]
[1644775718106,0.20456295,42428.0,42421.0,0.07393462]
[1644775718511,0.00042696,42427.0,42421.0,0.07393462]
[1644775719207,0.00042696,42427.0,42421.0,0.07423462]
[1644775719406,0.20456295,42428.0,42421.0,0.07423462]
[1644775719607,0.00042696,42427.0,42421.0,0.07423462]
[1644775720654,0.20456295,42428.0,42421.0,0.07423462]
[1644775720858,0.00042696,42427.0,42421.0,0.07423462]
[1644775721855,0.00124212,42429.0,42421.0,0.07423462]
[1644775722057,0.00042696,42427.0,42422.0,0.41788]
[1644775722256,0.00042696,42427.0,42422.0,0.358941]
[1644775722456,0.00042696,42427.0,42422.0,0.3]
[1644775722657,0.00042696,42427.0,42421.0,0.07423462]
[1644775723057,0.00124212,42429.0,42421.0,0.07423462]
[1644775723258,0.00042696,42427.0,42421.0,0.07423462]
[1644775724061,0.00042696,42427.0,42421.0,0.12423462]
[1644775724310,0.00026661,42428.0,42423.0,0.058935]
[1644775724510,0.00150873,42429.0,42423.0,0.117873]
[1644775724709,0.00150873,42429.0,42421.0,0.07423462]
[1644775724710,0.00026661,42428.0,42421.0,0.07423462]
[1644775724908,0.00150873,42429.0,42421.0,0.07423462]
[1644775725109,0.21499492,42428.0,42421.0,0.07423462]
[1644775725309,0.21472831,42428.0,42421.0,0.07423462]
[1644775725508,0.21499492,42428.0,42421.0,0.07423462]
[1644775725911,0.21499492,42428.0,42421.0,0.0007268]
[1644775726710,0.00013885,42427.0,42421.0,0.0007268]
[1644775726909,0.00040546,42427.0,42421.0,0.06726251]
[1644775727111,0.00013885,42427.0,42421.0,0.06726251]
[1644775727310,0.00040546,42427.0,42421.0,0.06726251]
[1644775727512,0.00013885,42427.0,42421.0,0.06726251]
[1644775727811,0.21499492,42428.0,42421.0,0.06726251]
[1644775728056,0.00043036,42427.0,42421.0,0.06726251]
[1644775728256,0.00069697,42427.0,42422.0,0.058941]
[1644775728456,0.00069697,42427.0,42422.0,0.05936778]
[1644775729057,0.00026661,42427.0,42422.0,0.05936778]
[1644775729258,0.00043036,42427.0,42422.0,0.05936778]
[1644775730160,0.00026661,42428.0,42422.0,0.05936778]
[1644775730359,0.00043036,42427.0,42422.0,0.11830678]
[1644775731464,0.00026661,42428.0,42423.0,0.117873]
[1644775731730,0.00043036,42427.0,42423.0,0.17681]
[1644775732528,0.00026661,42428.0,42423.0,0.058937]
[1644775732728,0.00150873,42429.0,42423.0,0.058937]
[1644775732929,0.00013709,42427.0,42423.0,0.106237]
[1644775733327,0.0004037,42427.0,42423.0,0.106237]
[1644775733527,0.00013709,42427.0,42423.0,0.106237]
[1644775733729,0.00026661,42428.0,42423.0,0.165173]
[1644775733926,0.00150873,42429.0,42423.0,0.106237]
[1644775734128,0.00013709,42427.0,42423.0,0.106237]
[1644775734326,0.00013709,42427.0,42424.0,0.058936]
[1644775734527,0.0004037,42427.0,42424.0,0.117874]
[1644775734727,0.00013709,42427.0,42424.0,0.117874]
[1644775734927,0.00026661,42428.0,42424.0,0.117873]
[1644775735228,0.00013833,42428.0,42424.0,0.117873]
[1644775735459,0.00040494,42428.0,42425.0,0.058936]
[1644775735759,0.00013833,42428.0,42426.0,0.3113843]
[1644775736060,0.00040494,42428.0,42427.0,0.25377583]
[1644775736263,0.00124212,42429.0,42427.0,0.25377583]
[1644775736264,0.00150873,42429.0,42427.0,0.25377583]
[1644775736461,0.00164706,42429.0,42427.0,0.31270983]
[1644775736659,0.00164706,42429.0,42428.0,0.25500806]
[1644775736861,0.00138045,42429.0,42428.0,0.25500806]
[1644775737060,0.00138045,42429.0,42428.0,0.32596716]
[1644775737461,0.00124212,42429.0,42428.0,0.1709591]
[1644775738462,0.00124212,42429.0,42428.0,0.0709591]
[1644775740111,0.00124212,42429.0,42426.0,0.058938]
[1644775740310,0.00150873,42429.0,42426.0,0.058938]
[1644775740610,0.00043238,42431.0,42430.0,0.00541245]
[1644775741012,0.00026713,42432.0,42430.0,0.00541245]
[1644775741212,0.0306995,42433.0,42430.0,0.00541245]
[1644775741415,0.0256995,42433.0,42430.0,0.00541245]
[1644775742213,0.02526713,42433.0,42430.0,0.00541245]
[1644775743255,0.02526713,42433.0,42430.0,0.06434545]
[1644775743558,0.02526713,42433.0,42431.0,0.25180986]
[1644775743757,0.02526713,42433.0,42430.0,0.06434545]
[1644775744558,0.02526713,42433.0,42430.0,0.00541245]
[1644775744956,0.02526713,42433.0,42430.0,0.25984611]
[1644775745559,0.02526713,42433.0,42430.0,0.00541245]
[1644775745959,0.02526713,42433.0,42430.0,0.25765654]
[1644775746159,0.02526713,42433.0,42430.0,0.00541245]
[1644775746913,0.02526713,42433.0,42430.0,0.00571245]
[1644775747713,0.02526713,42433.0,42430.0,0.00071245]
[1644775747913,0.02526713,42433.0,42430.0,0.05964545]
[1644775748213,0.02526713,42433.0,42430.0,0.00071245]
[1644775750115,0.08420713,42433.0,42430.0,0.00071245]
[1644775750314,0.08420813,42433.0,42430.0,0.00071245]
[1644775750566,0.23724718,42431.0,42430.0,0.00071245]
[1644775750767,0.23269274,42431.0,42430.0,0.00071245]
[1644775754315,0.55410082,42431.0,42430.0,0.00071245]
[1644775754510,0.60410082,42431.0,42430.0,0.00071245]
[1644775755211,0.32999274,42431.0,42430.0,0.00071245]
[1644775756413,0.25333197,42423.0,42419.0,0.25530862]
[1644775756612,0.058953,42428.0,42413.0,0.1]
[1644775756613,0.176859,42428.0,42413.0,0.1]
[1644775756819,0.176859,42428.0,42414.0,0.3]
[1644775756820,0.05,42426.0,42414.0,0.3]
[1644775757013,0.05,42428.0,42413.0,0.3]
[1644775757014,0.05,42423.0,42413.0,0.3]
[1644775757313,0.0473,42425.0,42411.0,0.015]
[1644775757314,0.2195483,42419.0,42411.0,0.015]
[1644775757513,1.88928497,42415.0,42411.0,0.015]
[1644775757959,0.0473,42414.0,42411.0,0.015]
[1644775759159,0.058968,42413.0,42411.0,0.015]
[1644775759559,0.28182332,42412.0,42411.0,0.015]
[1644775759762,0.37912332,42412.0,42411.0,0.015]
[1644775760159,0.59795165,42412.0,42411.0,0.015]
[1644775760359,0.37912332,42412.0,42411.0,0.015]
[1644775760561,0.0473,42412.0,42411.0,0.015]
[1644775760761,0.0473,42412.0,42408.0,0.00084834]
[1644775761816,0.10627,42412.0,42408.0,0.00084834]
[1644775762215,0.20931921,42409.0,42408.0,0.00084834]
[1644775763618,0.0473,42417.0,42408.0,0.00084834]
[1644775764017,0.369,42421.0,42408.0,0.05980534]
[1644775764218,0.481,42422.0,42409.0,0.36329268]
[1644775764219,0.3837,42422.0,42409.0,0.36329268]
[1644775764415,0.22526449,42422.0,42411.0,0.058956]
[1644775764618,0.00026769,42425.0,42417.0,0.07115328]
[1644775764619,0.20116495,42423.0,42417.0,0.07115328]
[1644775765215,0.20116495,42423.0,42409.0,0.1132]
[1644775765460,0.20116495,42423.0,42409.0,0.172158]
[1644775765660,0.39808729,42423.0,42409.0,0.172158]
[1644775765860,0.39808729,42423.0,42409.0,0.1132]
[1644775766061,0.05896,42421.0,42409.0,0.1132]
[1644775766261,0.22974133,42415.0,42408.0,0.86089024]
[1644775766462,0.22974133,42415.0,42408.0,0.31219024]
[1644775767060,0.22974133,42415.0,42408.0,0.00084834]
[1644775767962,0.28870833,42415.0,42408.0,0.00084834]
[1644775769230,0.058971,42413.0,42408.0,0.00084834]
[1644775770726,0.22974133,42415.0,42414.0,0.117942]
[1644775771327,0.34768633,42415.0,42414.0,0.117942]
[1644775771534,1.0,42414.0,42408.0,0.00084834]
[1644775771729,0.058978,42412.0,42408.0,0.00084834]
[1644775771929,0.0473,42411.0,42408.0,0.00084834]
[1644775772130,0.0973,42411.0,42408.0,0.00084834]
[1644775772333,0.0473,42411.0,42408.0,0.00084834]
[1644775772529,0.0973,42411.0,42408.0,0.00084834]
[1644775772729,0.23043743,42409.0,42408.0,0.00084834]
[1644775773361,0.51498538,42409.0,42408.0,0.00084834]
[1644775773764,0.56498538,42409.0,42408.0,0.00084834]
[1644775774368,0.61228538,42409.0,42408.0,0.00084834]
[1644775775866,0.62172938,42409.0,42408.0,0.00084834]
[1644775776265,0.61228538,42409.0,42408.0,0.00084834]
[1644775777119,0.33184795,42409.0,42408.0,0.00084834]
[1644775777323,0.05,42412.0,42408.0,0.00084834]
[1644775777524,0.1641,42412.0,42408.0,0.00084834]
[1644775780127,0.05,42412.0,42408.0,0.00084834]
[1644775781063,0.058968,42413.0,42408.0,0.00084834]
[1644775781266,0.05,42412.0,42404.0,0.07720562]
[1644775781865,0.67353172,42415.0,42404.0,0.07720562]
[1644775782066,0.058967,42414.0,42404.0,0.07720562]
[1644775782866,1.01287062,42415.0,42404.0,0.13617262]
[1644775782867,0.67353172,42415.0,42404.0,0.13617262]
[1644775783067,0.67353172,42415.0,42404.0,0.19513662]
[1644775783266,0.22974133,42415.0,42404.0,0.13617262]
[1644775784313,0.22974133,42415.0,42404.0,0.07720562]
[1644775784314,0.05897,42412.0,42404.0,0.07720562]
[1644775784512,0.05897,42412.0,42403.0,0.05897]
[1644775784717,0.05897,42412.0,42402.0,0.00039902]
[1644775785316,0.11794,42412.0,42402.0,0.00039902]
[1644775785514,0.26260488,42408.0,42403.0,0.05897]
[1644775785715,0.058968,42414.0,42403.0,0.05897]
[1644775786514,0.058968,42414.0,42403.0,0.117937]
[1644775787116,0.21652078,42411.0,42403.0,0.117937]
[1644775787515,0.21652078,42411.0,42403.0,0.05897]
[1644775787968,0.21652078,42411.0,42400.0,0.117935]
[1644775788165,0.27549178,42411.0,42402.0,0.00041955]
[1644775788566,0.33446178,42411.0,42402.0,0.00041955]
[1644775789164,0.33446178,42411.0,42402.0,0.058965]
[1644775789165,0.21652078,42411.0,42402.0,0.058965]
[1644775789364,0.21652078,42411.0,42402.0,0.05938455]
[1644775789964,0.3222649,42416.0,42403.0,0.117933]
[1644775790165,0.3222649,42416.0,42403.0,0.058968]
[1644775790765,0.3812289,42416.0,42403.0,0.058968]
[1644775791065,0.25351343,42412.0,42403.0,0.058968]
[1644775791728,0.058969,42412.0,42406.0,0.07979683]
[1644775791917,0.241832,42418.0,42407.0,0.32727929]
[1644775791918,0.1239,42418.0,42407.0,0.32727929]
[1644775792115,0.1239,42418.0,42408.0,0.0473]
[1644775792915,0.10188538,42427.0,42413.0,0.0665881]
[1644775793120,0.10188538,42427.0,42414.0,0.28478928]
[1644775793817,0.0999,42427.0,42414.0,0.28478928]
[1644775794117,0.57352497,42426.0,42414.0,0.28478928]
[1644775794317,0.56457497,42426.0,42414.0,0.28478928]
[1644775795017,0.058954,42425.0,42414.0,0.34374328]
[1644775795218,0.058956,42421.0,42414.0,0.28478928]
[1644775796266,0.058956,42421.0,42411.0,0.29348903]
[1644775796466,0.25550621,42418.0,42411.0,0.36614455]
[1644775796669,1.70817342,42415.0,42410.0,0.0473]
[1644775796867,1.70817342,42415.0,42410.0,0.34719187]
[1644775797068,0.058964,42417.0,42410.0,0.04719187]
[1644775797368,0.25550621,42418.0,42410.0,0.34719187]
[1644775797568,0.25550621,42418.0,42410.0,0.04719187]
[1644775797767,0.25550621,42418.0,42410.0,0.34719187]
[1644775797768,0.31446621,42418.0,42410.0,0.34719187]
[1644775799215,0.058961,42417.0,42410.0,0.34719187]
[1644775799417,0.117922,42416.0,42410.0,0.34719187]
[1644775799617,0.058961,42416.0,42410.0,0.34719187]
[1644775800820,0.25550621,42418.0,42417.0,0.353766]
[1644775801318,0.31446421,42418.0,42417.0,0.353766]
[1644775802317,0.058958,42418.0,42417.0,0.353766]
[1644775804376,0.176872,42420.0,42417.0,0.64546195]
[1644775804377,0.058949,42420.0,42417.0,0.64546195]
[1644775805373,0.058949,42420.0,42418.0,0.25453162]
[1644775805575,0.058949,42420.0,42417.0,0.353766]
[1644775805576,0.117898,42420.0,42417.0,0.353766]
[1644775806572,0.176852,42420.0,42417.0,0.353766]
[1644775806814,0.11791,42419.0,42417.0,0.353766]
[1644775807816,0.11791,42419.0,42418.0,0.25632497]